Workbook

Sheet Input
B1: Directions:
B2: 1) Select software version installed on the SDG | C2: Sieve Conversions | F2: Sieve Conversions | K2: Sieve Size (mm) (A) | L2: % Passing (B)
B3: 2) Define the material as described below
B4: 3) View the particle distribution curve and material properties
B5: 4) Save the material file in the desired location | K5: 0 | L5: 0
C6: SI | D6: Metric | F6: SI | G6: Metric | K6: 0 | L6: 0
B7: Define Materials As Follows: | C7: 4" | D7: 100 mm | F7: No. 3-1/2 | G7: 5.6 mm | K7: 0 | L7: 0
B8: 1) Enter the sieve sizes, in mm, in descending order, in Column A | C8: 3-1/2" | D8: 90 mm | F8: No. 4 | G8: 4.75 mm | K8: 0 | L8: 0
B9: 2) Enter the percent passing each sieve (% finer) in Column B | C9: 3" | D9: 75 mm | F9: No. 5 | G9: 4.00 mm | K9: 0 | L9: 0
B10: 3) Enter the Soil ID (Up to 8 characters, numbers only) | C10: 2-1/2" | D10: 63 mm | F10: No. 6 | G10: 3.35 mm | K10: 0 | L10: 0
B11: 4) Enter the Material Description (Up to 16 characters, alpha/numeric) | C11: 2.12" | D11: 53 mm | F11: No. 7 | G11: 2.80 mm | K11: 0 | L11: 0
B12: 5) Enter the Maximum dry density in pcf or kg/m³ | C12: 2" | D12: 50 mm | F12: No. 8 | G12: 2.36 mm | K12: 0 | L12: 0
B13: 6) Enter the optimum moisture content in percent | C13: 1-3/4" | D13: 45 mm | F13: No. 10 | G13: 2.00 mm | K13: 0 | L13: 0
B14: 7) Enter the plastic limit | C14: 1-1/2" | D14: 37.5 mm | F14: No. 12 | G14: 1.70 mm | K14: 0 | L14: 0
B15: 8) Enter the liquid limit | C15: 1-1/4" | D15: 31.5 mm | F15: No. 14 | G15: 1.40 mm | K15: 0 | L15: 0
B16: 9) Enter the material file name(maximum of 8 characters) | C16: 1.06" | D16: 26.5 mm | F16: No. 16 | G16: 1.18 mm | K16: 0 | L16: 0
C17: 1" | D17: 25.0 mm | F17: No. 18 | G17: 1.00 mm | K17: 0 | L17: 0
B18: Limitations: | C18: 7/8" | D18: 22.4 mm | F18: No. 20 | G18: 0.850mm | K18: 0 | L18: 0
B19: 1) D10, D30, and D60 are only calculated if the percent passing the smallest | C19: 3/4" | D19: 19.0 mm | F19: No. 25 | G19: 0.710mm | K19: 0 | L19: 0
B20: sieve is less than 10, 30, or 60%. When D10, D30 or D60 are not calculated, d10, | C20: 5/8" | D20: 16.0 mm | F20: No. 30 | G20: 0.600mm | K20: 0 | L20: 0
B21: d30 and d60 will be calculated from an extrapolation of the particle size distribution | C21: 0.530" | D21: 13.2 mm | F21: No. 35 | G21: 0.500mm | K21: 0 | L21: 0
B22: curve. Cu and Cc values calculated from d10, d30, and d60 are not automatically | C22: 1/2" | D22: 12.5 mm | F22: No. 40 | G22: 0.425mm | K22: 0 | L22: 0
B23: imported to the SDG, they need to be manually entered at the operators discretion. | C23: 7/16" | D23: 11.2 mm | F23: No. 45 | G23: 0.355mm | K23: 0 | L23: 0
B24: 2) If 3", 3/4", #4, #200 Sieves are not used, the values of % Sand, % Gravel, % Fines, | C24: 3/8" | D24: 9.5 mm | F24: No. 50 | G24: 0.300mm | K24: 0 | L24: 0
B25: %>3, and %>3/4 are interpolated from the gradation data entered | C25: 5/16" | D25: 8.0 mm | F25: No. 60 | G25: 0.250mm
B26: 3) D10, D30, and D60 values are interpolated from the plot shown and are subject | C26: 0.265" | D26: 6.7 mm | F26: No. 70 | G26: 0.212mm | H26: Description:
B27: to the error in the interpolation method | C27: 1/4" | D27: 6.3 mm | F27: No. 80 | G27: 0.180mm | H27: Soil ID:
B28: View Size Distribution Curve | F28: No. 100 | G28: 0.150mm | J28: Depth:
F29: No. 120 | G29: 0.125mm | H29: Max Dry Density:
F30: No. 140 | G30: 0.106mm | H30: Optimum Moisture Content:
F31: No. 170 | G31: 0.090mm | J31: WD Offset:
F32: No. 200 | G32: 0.075mm | J32: % Moisture Offset:
B33: Troubleshooting: | F33: No. 230 | G33: 0.063mm | H33: PL:
B34: 1) Sieve Sizes in Column A need to be entered in descending order. | F34: No. 270 | G34: 0.053mm | H34: LL:
B35: 2) Values in Column B will also be in descending order, for example, the % passing | F35: No. 325 | G35: 0.045mm | I35: Material File Name
B36: the 25mm sieve will never be greater than the % passing the 50mm sieve. | F36: No. 400 | G36: 0.038mm
B37: 3) The SDG will not recognize the file unless it has a .mtl extension. | F37: No. 450 | G37: 0.032mm
B38: 4) The SDG will not recognize the file unless its name is 8 characters or less. | F38: No. 500 | G38: 0.025mm
B39: 5) The SDG will only recognize the first 20 .mtl files saved on the flash drive. | F39: No. 635 | G39: 0.020mm
B40: 6) The SDG will only recognize the .mtl files in the root directory of the flash drive. Any
B41: .mtl files saved in folders on the flash drive cannot be transferred to the SDG.
B42: 7) Any unused cells in Column A need to have zero entered in them.
B43: 8) Any unused cells in Column B need a zero entered in them.
B44: 9) All files generated by this spreadsheet are initially saved to your Desktop.
B45: 10) The first time your PC tries to open the .mtl file it will not be able to. Find the file on the desk top,
B46: double click on it and open it with WordPad. All .mtl files will open properly after that.

Sheet Size Distribution Curve
A1: Soil ID; | B1: =ID -> 0 | F1: Max Dry Density; | I1: =MDD -> 0 | J1: =Units -> 0 | L1: LL; | M1: =LL -> 0
A2: Description; | B2: =Desc -> 0 | F2: Optimum Moisture Content; | I2: =OMC -> 0 | L2: PL; | M2: =PL -> 0 | Q2: Gradation; | T2: Extrapolated Coefficients (see Limitations on Input Screen)
Q3: Sieve (mm) | R3: % Passing | T3: d10 | U3: =Data!C8 -> 0
Q4: =IF(Input!K5=0,"",Input!K5) ->  | R4: =Input!L5 -> 0 | T4: d30 | U4: =Data!C9 -> 0
Q5: =IF(Input!K6=0,"",Input!K6) ->  | R5: =Input!L6 -> 0 | T5: d60 | U5: =Data!C10 -> 0
Q6: =IF(Input!K7=0,"",Input!K7) ->  | R6: =Input!L7 -> 0 | T6: Cu | U6: =IFERROR(Data!C10/Data!C8,0) -> 0
Q7: =IF(Input!K8=0,"",Input!K8) ->  | R7: =Input!L8 -> 0 | T7: Cc | U7: =IFERROR((Data!C9^2)/(Data!C10*Data!C8),0) -> 0
Q8: =IF(Input!K9=0,"",Input!K9) ->  | R8: =Input!L9 -> 0
Q9: =IF(Input!K10=0,"",Input!K10) ->  | R9: =Input!L10 -> 0
Q10: =IF(Input!K11=0,"",Input!K11) ->  | R10: =Input!L11 -> 0
Q11: =IF(Input!K12=0,"",Input!K12) ->  | R11: =Input!L12 -> 0
Q12: =IF(Input!K13=0,"",Input!K13) ->  | R12: =Input!L13 -> 0
B13: Input Screen | Q13: =IF(Input!K14=0,"",Input!K14) ->  | R13: =IF(Input!L14=0,"",Input!L14) -> 
Q14: =IF(Input!K15=0,"",Input!K15) ->  | R14: =IF(Input!L15=0,"",Input!L15) -> 
B15: Distribution Curve | Q15: =IF(Input!K16=0,"",Input!K16) ->  | R15: =IF(Input!L16=0,"",Input!L16) -> 
Q16: =IF(Input!K17=0,"",Input!K17) ->  | R16: =IF(Input!L17=0,"",Input!L17) -> 
Q17: =IF(Input!K18=0,"",Input!K18) ->  | R17: =IF(Input!L18=0,"",Input!L18) -> 
Q18: =IF(Input!K19=0,"",Input!K19) ->  | R18: =IF(Input!L19=0,"",Input!L19) -> 
Q19: =IF(Input!K20=0,"",Input!K20) ->  | R19: =IF(Input!L20=0,"",Input!L20) -> 
Q20: =IF(Input!K21=0,"",Input!K21) ->  | R20: =IF(Input!L21=0,"",Input!L21) -> 
Q21: =IF(Input!K22=0,"",Input!K22) ->  | R21: =IF(Input!L22=0,"",Input!L22) -> 
Q22: =IF(Input!K23=0,"",Input!K23) ->  | R22: =IF(Input!L23=0,"",Input!L23) -> 
Q23: =IF(Input!K24=0,"",Input!K24) ->  | R23: =IF(Input!L24=0,"",Input!L24) -> 
Q25: Material Properties
Q26: Description = | S26: =Desc -> 0
Q27: Soil ID = | S27: =ID -> 0
Q28: Depth = | S28: =Depth -> 0
Q29: Max Dry Density = | S29: =MDD -> 0
Q30: Optimum Moisture = | S30: =OMC -> 0
Q31: WD Offset = | S31: =WDos -> 0
Q32: % Moisture Offset = | S32: =wos -> 0
M33: =Input!K35 -> 0 | Q33: % > 3 in. = | S33: =100-Data!B29 -> 100
Q34: % > 3/4 in. = | S34: =100-Data!B32 -> 100
Q35: % Gravel = | S35: =Data!C29 -> 0
Q36: % Sand = | S36: =Data!C30 -> 0
Q37: % Fines = | S37: =Data!C31 -> 0
Q38: PL = | S38: =PL -> 0
Q39: LL = | S39: =LL -> 0
B40: View Input | Q40: Cu = | S40: =IFERROR(IF(Data!D8="D10=0",0,Data!C10/Data!C8),0) -> 0
Q41: Cc = | S41: =IFERROR(IF(Data!D8="D10=0",0,(Data!C9^2)/(Data!C10*Data!C8)),0) -> 0
Q42: File Name | S42: =Input!K35 -> 0
A98: 100
A99: 1
A100: =Desc&";"&ID&";"&A103&";"&A104&";"&A105&";"&A106&";"&A107&";"&A108&";"&A109&";"&A110&";"&A111&";"&A112&";"&A113&";"&A114&";"&A115&";"&A116 -> ;;0;0.00;0.00;0;0;100.00;100.00;0.00;0.00;0.00;0.00;0.00;0.00;0.00
A103: =Depth -> 0 | B103: depth
A104: =FIXED(S29,2) -> 0.00 | B104: mdd
A105: =FIXED(S30,2) -> 0.00 | B105: optm
A106: =WDos -> 0 | B106: WD offset
A107: =wos -> 0 | B107: moisture offset
A108: =FIXED(S33,2) -> 100.00 | B108: 0.03
A109: 100.00 | B109: %3/4
A110: 0.00 | B110: %g
A111: 0.00 | B111: %s
A112: 0.00 | B112: %f
A113: 0.00 | B113: pl
A114: 0.00 | B114: ll
A115: 0.00 | B115: cu
A116: 0.00 | B116: cc

Sheet Data (hidden)
J2: Extrapolated
F3: Y Value | G3: X Value | H3: X Plotted | I3: Y Plotted | J3: y Ploted | L3: Y Plotted values are only the values that are greater in diameter than the #200 sieve (.075mm) | V3: #60 | W3: =IF($T$21="#200",0.075,IF($T$21="#140",0.106,IF($T$21="#100",0.15,IF($T$21="#60",0.25,IF($T$21="#50",0.3,IF($T$21="#40",0.425,"ERROR")))))) -> ERROR
F4: 0.01 | G4: =cubspline(3,F4,Data!$B$36:$B$56,Data!$A$36:$A$56) -> 0 | H4: =IF(G4<=0,0.0000000001,G4) -> 1e-10 | I4: =IF(F4>$D$47,F4,NA()) -> 0.01 | J4: =IF(F4>=$D$47,F4,($D$47-(0.3*($D$47-F4)))) -> 0.01 | L4: X Plotted values are forced to be greater than zero
F5: =F4+0.1 -> 0.11 | G5: =cubspline(3,F5,Data!$B$36:$B$56,Data!$A$36:$A$56) -> 0 | H5: =IF(G5<=0,0.0000000001,G5) -> 1e-10 | I5: =IF(F5>$D$47,F5,NA()) -> 0.11 | J5: =IF(F5>=$D$47,F5,($D$47-(0.3*($D$47-F5)))) -> 0.11 | L5: D10 Logic prevents d10 from being calculated when it is less than the smallest sieve used in the gradation analysis
E6: Interpolated | F6: =F5+0.1 -> 0.21 | G6: =cubspline(3,F6,Data!$B$36:$B$56,Data!$A$36:$A$56) -> 0 | H6: =IF(G6<=0,0.0000000001,G6) -> 1e-10 | I6: 0.21 | J6: 0.21 | L6: Extrapolated Y Plotted - not used - prevents y value from approaching zero - approaches approximately 70% of percent passing smallest sieve
A7: Inputs for Cu, Cc | D7: D10 Logic | E7: D10, 30, 60 | F7: 0.31 | G7: =cubspline(3,F7,Data!$B$36:$B$56,Data!$A$36:$A$56) -> 0 | H7: 1e-10 | I7: 0.31 | J7: 0.31 | L7: Inputs for Cu, Cc on Extrapolated Line - not used - Cu, Cc from above - not used because it can prevent Cu and Cc from being calculated if 70% of the percent passing the smallest sieve is still greater than 60. 30, or 10%
A8: D10 | B8: 10 | C8: =cubspline(3,B8,Data!$B$36:$B$56,Data!$A$36:$A$56) -> 0 | D8: =IF(C8<$D$44,"D10=0",C8) -> 0 | E8: =IF(C8=D8,"n/a", C8) -> n/a | F8: 0.41 | G8: =cubspline(3,F8,Data!$B$36:$B$56,Data!$A$36:$A$56) -> 0 | H8: 1e-10 | I8: 0.41 | J8: 0.41
A9: D30 | B9: 30 | C9: =cubspline(3,B9,Data!$B$36:$B$56,Data!$A$36:$A$56) -> 0 | D9: =IF(C9<$D$44,"D30=0",C9) -> 0 | E9: =IF(C9=D9,"n/a", C9) -> n/a | F9: 0.51 | G9: =cubspline(3,F9,Data!$B$36:$B$56,Data!$A$36:$A$56) -> 0 | H9: 1e-10 | I9: 0.51 | J9: 0.51
A10: D60 | B10: 60 | C10: =cubspline(3,B10,Data!$B$36:$B$56,Data!$A$36:$A$56) -> 0 | D10: =IF(C10<$D$44,"D60=0",C10) -> 0 | E10: =IF(C10=D10,"n/a", C10) -> n/a | F10: 0.61 | G10: =cubspline(3,F10,Data!$B$36:$B$56,Data!$A$36:$A$56) -> 0 | H10: 1e-10 | I10: 0.61 | J10: 0.61
A11: D#200 | B11: =B31 -> 0 | C11: =cubspline(3,B11,Data!$B$36:$B$56,Data!$A$36:$A$56) -> 0 | F11: 0.71 | G11: =cubspline(3,F11,Data!$B$36:$B$56,Data!$A$36:$A$56) -> 0 | H11: 1e-10 | I11: 0.71 | J11: 0.71
F12: 0.81 | G12: =cubspline(3,F12,Data!$B$36:$B$56,Data!$A$36:$A$56) -> 0 | H12: 1e-10 | I12: 0.81 | J12: 0.81
A13: Inputs for Cu, Cc on Extrapolated Line | F13: 0.91 | G13: =cubspline(3,F13,Data!$B$36:$B$56,Data!$A$36:$A$56) -> 0 | H13: 1e-10 | I13: 0.91 | J13: 0.91
A14: d10 | B14: 10 | C14: =cubspline(3,B14,Data!$J$4:$J$1004,Data!$H$4:$H$1004) -> 1e-10 | F14: 1.01 | G14: =cubspline(3,F14,Data!$B$36:$B$56,Data!$A$36:$A$56) -> 0 | H14: 1e-10 | I14: 1.01 | J14: 1.01
A15: d30 | B15: 30 | C15: =cubspline(3,B15,Data!$J$4:$J$1004,Data!$H$4:$H$1004) -> 1e-10 | F15: 1.11 | G15: =cubspline(3,F15,Data!$B$36:$B$56,Data!$A$36:$A$56) -> 0 | H15: 1e-10 | I15: 1.11 | J15: 1.11
A16: d60 | B16: 60 | C16: =cubspline(3,B16,Data!$J$4:$J$1004,Data!$H$4:$H$1004) -> 1e-10 | F16: 1.21 | G16: =cubspline(3,F16,Data!$B$36:$B$56,Data!$A$36:$A$56) -> 0 | H16: 1e-10 | I16: 1.21 | J16: 1.21
F17: 1.31 | G17: =cubspline(3,F17,Data!$B$36:$B$56,Data!$A$36:$A$56) -> 0 | H17: 1e-10 | I17: 1.31 | J17: 1.31
F18: 1.41 | G18: =cubspline(3,F18,Data!$B$36:$B$56,Data!$A$36:$A$56) -> 0 | H18: 1e-10 | I18: 1.41 | J18: 1.41
F19: 1.51 | G19: =cubspline(3,F19,Data!$B$36:$B$56,Data!$A$36:$A$56) -> 0 | H19: 1e-10 | I19: 1.51 | J19: 1.51
F20: 1.61 | G20: =cubspline(3,F20,Data!$B$36:$B$56,Data!$A$36:$A$56) -> 0 | H20: =IF(G20<=0,0.0000000001,G20) -> 1e-10 | I20: 1.61 | J20: 1.61
F21: 1.71 | G21: =cubspline(3,F21,Data!$B$36:$B$56,Data!$A$36:$A$56) -> 0 | H21: 1e-10 | I21: 1.71 | J21: 1.71
F22: 1.81 | G22: =cubspline(3,F22,Data!$B$36:$B$56,Data!$A$36:$A$56) -> 0 | H22: 1e-10 | I22: 1.81 | J22: 1.81
F23: 1.91 | G23: =cubspline(3,F23,Data!$B$36:$B$56,Data!$A$36:$A$56) -> 0 | H23: 1e-10 | I23: 1.91 | J23: 1.91
F24: 2.01 | G24: =cubspline(3,F24,Data!$B$36:$B$56,Data!$A$36:$A$56) -> 0 | H24: 1e-10 | I24: 2.01 | J24: 2.01
F25: 2.11 | G25: =cubspline(3,F25,Data!$B$36:$B$56,Data!$A$36:$A$56) -> 0 | H25: 1e-10 | I25: 2.11 | J25: 2.11
F26: 2.21 | G26: =cubspline(3,F26,Data!$B$36:$B$56,Data!$A$36:$A$56) -> 0 | H26: 1e-10 | I26: 2.21 | J26: 2.21
A27: Percentages of Sand, Gravel, Fines, +3, +3/4 | F27: 2.31 | G27: =cubspline(3,F27,Data!$B$36:$B$56,Data!$A$36:$A$56) -> 0 | H27: 1e-10 | I27: 2.31 | J27: 2.31
A28: Sieve mm | C28: =100-B29 -> 100 | F28: 2.41 | G28: =cubspline(3,F28,Data!$B$36:$B$56,Data!$A$36:$A$56) -> 0 | H28: 1e-10 | I28: 2.41 | J28: 2.41
A29: 75 | B29: =IF(cubspline(3,A29,Data!$A$36:$A$56,Data!$B$36:$B$56)<100,(cubspline(3,A29,Data!$A$36:$A$56,Data!$B$36:$B$56)),100) -> 0 | C29: =B29-B30 -> 0 | F29: 2.51 | G29: =cubspline(3,F29,Data!$B$36:$B$56,Data!$A$36:$A$56) -> 0 | H29: 1e-10 | I29: 2.51 | J29: 2.51
A30: 4.75 | B30: =IF(cubspline(3,A30,Data!$A$36:$A$56,Data!$B$36:$B$56)<100,(cubspline(3,A30,Data!$A$36:$A$56,Data!$B$36:$B$56)),100) -> 0 | C30: =B30-B31 -> 0 | F30: 2.61 | G30: =cubspline(3,F30,Data!$B$36:$B$56,Data!$A$36:$A$56) -> 0 | H30: 1e-10 | I30: 2.61 | J30: 2.61
A31: 0.075 | B31: =IF(cubspline(3,A31,Data!$A$36:$A$56,Data!$B$36:$B$56)<100,(cubspline(3,A31,Data!$A$36:$A$56,Data!$B$36:$B$56)),100) -> 0 | C31: =B31 -> 0 | F31: 2.71 | G31: =cubspline(3,F31,Data!$B$36:$B$56,Data!$A$36:$A$56) -> 0 | H31: 1e-10 | I31: 2.71 | J31: 2.71
A32: 19 | B32: =IF(cubspline(3,A32,Data!$A$36:$A$56,Data!$B$36:$B$56)<100,(cubspline(3,A32,Data!$A$36:$A$56,Data!$B$36:$B$56)),100) -> 0 | C32: =100-B32 -> 100 | F32: 2.81 | G32: =cubspline(3,F32,Data!$B$36:$B$56,Data!$A$36:$A$56) -> 0 | H32: 1e-10 | I32: 2.81 | J32: 2.81
F33: 2.91 | G33: =cubspline(3,F33,Data!$B$36:$B$56,Data!$A$36:$A$56) -> 0 | H33: 1e-10 | I33: 2.91 | J33: 2.91
F34: 3.01 | G34: =cubspline(3,F34,Data!$B$36:$B$56,Data!$A$36:$A$56) -> 0 | H34: 1e-10 | I34: 3.01 | J34: 3.01
A35: Size | B35: Passing | F35: 3.11 | G35: =cubspline(3,F35,Data!$B$36:$B$56,Data!$A$36:$A$56) -> 0 | H35: 1e-10 | I35: 3.11 | J35: 3.11
A36: 0 | B36: 0 | F36: 3.21 | G36: =cubspline(3,F36,Data!$B$36:$B$56,Data!$A$36:$A$56) -> 0 | H36: 1e-10 | I36: 3.21 | J36: 3.21
A37: =Input!K24 -> 0 | B37: =Input!L24 -> 0 | C37: =IF(A37=0,"na",A37) -> na | F37: 3.31 | G37: =cubspline(3,F37,Data!$B$36:$B$56,Data!$A$36:$A$56) -> 0 | H37: 1e-10 | I37: 3.31 | J37: 3.31
A38: =Input!K23 -> 0 | B38: =Input!L23 -> 0 | C38: =IF(A38=0,"na",A38) -> na | F38: 3.41 | G38: =cubspline(3,F38,Data!$B$36:$B$56,Data!$A$36:$A$56) -> 0 | H38: 1e-10 | I38: 3.41 | J38: 3.41
A39: =Input!K22 -> 0 | B39: =Input!L22 -> 0 | C39: na | F39: 3.51 | G39: =cubspline(3,F39,Data!$B$36:$B$56,Data!$A$36:$A$56) -> 0 | H39: 1e-10 | I39: 3.51 | J39: 3.51
A40: =Input!K21 -> 0 | B40: =Input!L21 -> 0 | C40: na | F40: 3.61 | G40: =cubspline(3,F40,Data!$B$36:$B$56,Data!$A$36:$A$56) -> 0 | H40: 1e-10 | I40: 3.61 | J40: 3.61
A41: =Input!K20 -> 0 | B41: =Input!L20 -> 0 | C41: na | F41: 3.71 | G41: =cubspline(3,F41,Data!$B$36:$B$56,Data!$A$36:$A$56) -> 0 | H41: 1e-10 | I41: 3.71 | J41: 3.71
A42: =Input!K19 -> 0 | B42: =Input!L19 -> 0 | C42: na | F42: 3.81 | G42: =cubspline(3,F42,Data!$B$36:$B$56,Data!$A$36:$A$56) -> 0 | H42: 1e-10 | I42: 3.81 | J42: 3.81
A43: =Input!K18 -> 0 | B43: =Input!L18 -> 0 | C43: na | F43: 3.91 | G43: =cubspline(3,F43,Data!$B$36:$B$56,Data!$A$36:$A$56) -> 0 | H43: 1e-10 | I43: 3.91 | J43: 3.91
A44: =Input!K17 -> 0 | B44: =Input!L17 -> 0 | C44: na | D44: =MIN(C37:C56) -> 0 | E44: Min Sieve Used | F44: 4.01 | G44: =cubspline(3,F44,Data!$B$36:$B$56,Data!$A$36:$A$56) -> 0 | H44: 1e-10 | I44: 4.01 | J44: 4.01
A45: =Input!K16 -> 0 | B45: =Input!L16 -> 0 | C45: na | F45: 4.11 | G45: =cubspline(3,F45,Data!$B$36:$B$56,Data!$A$36:$A$56) -> 0 | H45: 1e-10 | I45: 4.11 | J45: 4.11
A46: =Input!K15 -> 0 | B46: =Input!L15 -> 0 | C46: na | F46: 4.21 | G46: =cubspline(3,F46,Data!$B$36:$B$56,Data!$A$36:$A$56) -> 0 | H46: 1e-10 | I46: 4.21 | J46: 4.21
A47: =Input!K14 -> 0 | B47: =Input!L14 -> 0 | C47: na | D47: =IF(cubspline(3,D44,Data!$A$36:$A$56,Data!$B$36:$B$56)<100,(cubspline(3,D44,Data!$A$36:$A$56,Data!$B$36:$B$56)),100) -> 0 | E47: % Passing Min Sieve | F47: 4.31 | G47: =cubspline(3,F47,Data!$B$36:$B$56,Data!$A$36:$A$56) -> 0 | H47: 1e-10 | I47: 4.31 | J47: 4.31
A48: =Input!K13 -> 0 | B48: =Input!L13 -> 0 | C48: na | F48: 4.41 | G48: =cubspline(3,F48,Data!$B$36:$B$56,Data!$A$36:$A$56) -> 0 | H48: 1e-10 | I48: 4.41 | J48: 4.41
A49: =Input!K12 -> 0 | B49: =Input!L12 -> 0 | C49: na | F49: 4.51 | G49: =cubspline(3,F49,Data!$B$36:$B$56,Data!$A$36:$A$56) -> 0 | H49: 1e-10 | I49: 4.51 | J49: 4.51
A50: =Input!K11 -> 0 | B50: =Input!L11 -> 0 | C50: na | F50: 4.61 | G50: =cubspline(3,F50,Data!$B$36:$B$56,Data!$A$36:$A$56) -> 0 | H50: 1e-10 | I50: 4.61 | J50: 4.61
A51: =Input!K10 -> 0 | B51: =Input!L10 -> 0 | C51: na | F51: 4.71 | G51: =cubspline(3,F51,Data!$B$36:$B$56,Data!$A$36:$A$56) -> 0 | H51: 1e-10 | I51: 4.71 | J51: 4.71
A52: =Input!K9 -> 0 | B52: =Input!L9 -> 0 | C52: na | F52: 4.81 | G52: =cubspline(3,F52,Data!$B$36:$B$56,Data!$A$36:$A$56) -> 0 | H52: 1e-10 | I52: 4.81 | J52: 4.81
A53: =Input!K8 -> 0 | B53: =Input!L8 -> 0 | C53: na | F53: 4.91 | G53: =cubspline(3,F53,Data!$B$36:$B$56,Data!$A$36:$A$56) -> 0 | H53: 1e-10 | I53: 4.91 | J53: 4.91
A54: =Input!K7 -> 0 | B54: =Input!L7 -> 0 | C54: na | F54: 5.01 | G54: =cubspline(3,F54,Data!$B$36:$B$56,Data!$A$36:$A$56) -> 0 | H54: 1e-10 | I54: 5.01 | J54: 5.01
A55: =Input!K6 -> 0 | B55: =Input!L6 -> 0 | C55: na | F55: 5.11 | G55: =cubspline(3,F55,Data!$B$36:$B$56,Data!$A$36:$A$56) -> 0 | H55: 1e-10 | I55: 5.11 | J55: 5.11
A56: =Input!K5 -> 0 | B56: =Input!L5 -> 0 | C56: na | F56: 5.21 | G56: =cubspline(3,F56,Data!$B$36:$B$56,Data!$A$36:$A$56) -> 0 | H56: 1e-10 | I56: 5.21 | J56: 5.21
F57: 5.31 | G57: =cubspline(3,F57,Data!$B$36:$B$56,Data!$A$36:$A$56) -> 0 | H57: 1e-10 | I57: 5.31 | J57: 5.31
C58: Identifies min sieve | F58: 5.41 | G58: =cubspline(3,F58,Data!$B$36:$B$56,Data!$A$36:$A$56) -> 0 | H58: 1e-10 | I58: 5.41 | J58: 5.41
C59: size used for plot of curve fit | F59: 5.51 | G59: =cubspline(3,F59,Data!$B$36:$B$56,Data!$A$36:$A$56) -> 0 | H59: 1e-10 | I59: 5.51 | J59: 5.51
F60: 5.61 | G60: =cubspline(3,F60,Data!$B$36:$B$56,Data!$A$36:$A$56) -> 0 | H60: 1e-10 | I60: 5.61 | J60: 5.61
F61: 5.71 | G61: =cubspline(3,F61,Data!$B$36:$B$56,Data!$A$36:$A$56) -> 0 | H61: 1e-10 | I61: 5.71 | J61: 5.71
A62: Plots for sand, gravel,fines | F62: 5.81 | G62: =cubspline(3,F62,Data!$B$36:$B$56,Data!$A$36:$A$56) -> 0 | H62: 1e-10 | I62: 5.81 | J62: 5.81
A63: 75 | B63: 1e-05 | F63: 5.91 | G63: =cubspline(3,F63,Data!$B$36:$B$56,Data!$A$36:$A$56) -> 0 | H63: 1e-10 | I63: 5.91 | J63: 5.91
A64: 75 | B64: 100 | F64: 6.01 | G64: =cubspline(3,F64,Data!$B$36:$B$56,Data!$A$36:$A$56) -> 0 | H64: 1e-10 | I64: 6.01 | J64: 6.01
F65: 6.11 | G65: =cubspline(3,F65,Data!$B$36:$B$56,Data!$A$36:$A$56) -> 0 | H65: 1e-10 | I65: 6.11 | J65: 6.11
A66: 4.75 | B66: 1e-06 | F66: 6.21 | G66: =cubspline(3,F66,Data!$B$36:$B$56,Data!$A$36:$A$56) -> 0 | H66: 1e-10 | I66: 6.21 | J66: 6.21
A67: 4.75 | B67: 100 | F67: 6.31 | G67: =cubspline(3,F67,Data!$B$36:$B$56,Data!$A$36:$A$56) -> 0 | H67: 1e-10 | I67: 6.31 | J67: 6.31
F68: 6.41 | G68: =cubspline(3,F68,Data!$B$36:$B$56,Data!$A$36:$A$56) -> 0 | H68: 1e-10 | I68: 6.41 | J68: 6.41
A69: 0.075 | B69: 1e-06 | F69: 6.51 | G69: =cubspline(3,F69,Data!$B$36:$B$56,Data!$A$36:$A$56) -> 0 | H69: 1e-10 | I69: =IF(F69>$D$47,F69,NA()) -> 6.51 | J69: =IF(F69>=$D$47,F69,($D$47-(0.3*($D$47-F69)))) -> 6.51
A70: 0.075 | B70: 100 | F70: =F69+0.1 -> 6.61 | G70: =cubspline(3,F70,Data!$B$36:$B$56,Data!$A$36:$A$56) -> 0 | H70: =IF(G70<=0,0.0000000001,G70) -> 1e-10 | I70: 6.61 | J70: 6.61
F71: 6.71 | G71: =cubspline(3,F71,Data!$B$36:$B$56,Data!$A$36:$A$56) -> 0 | H71: 1e-10 | I71: 6.71 | J71: 6.71
F72: 6.81 | G72: =cubspline(3,F72,Data!$B$36:$B$56,Data!$A$36:$A$56) -> 0 | H72: 1e-10 | I72: 6.81 | J72: 6.81
F73: 6.91 | G73: =cubspline(3,F73,Data!$B$36:$B$56,Data!$A$36:$A$56) -> 0 | H73: 1e-10 | I73: 6.91 | J73: 6.91
F74: 7.01 | G74: =cubspline(3,F74,Data!$B$36:$B$56,Data!$A$36:$A$56) -> 0 | H74: 1e-10 | I74: 7.01 | J74: 7.01
F75: 7.11 | G75: =cubspline(3,F75,Data!$B$36:$B$56,Data!$A$36:$A$56) -> 0 | H75: 1e-10 | I75: 7.11 | J75: 7.11
F76: 7.21 | G76: =cubspline(3,F76,Data!$B$36:$B$56,Data!$A$36:$A$56) -> 0 | H76: 1e-10 | I76: 7.21 | J76: 7.21
F77: 7.31 | G77: =cubspline(3,F77,Data!$B$36:$B$56,Data!$A$36:$A$56) -> 0 | H77: 1e-10 | I77: 7.31 | J77: 7.31
F78: 7.41 | G78: =cubspline(3,F78,Data!$B$36:$B$56,Data!$A$36:$A$56) -> 0 | H78: 1e-10 | I78: 7.41 | J78: 7.41
F79: 7.51 | G79: =cubspline(3,F79,Data!$B$36:$B$56,Data!$A$36:$A$56) -> 0 | H79: 1e-10 | I79: 7.51 | J79: 7.51
F80: 7.61 | G80: =cubspline(3,F80,Data!$B$36:$B$56,Data!$A$36:$A$56) -> 0 | H80: 1e-10 | I80: 7.61 | J80: 7.61
F81: 7.71 | G81: =cubspline(3,F81,Data!$B$36:$B$56,Data!$A$36:$A$56) -> 0 | H81: 1e-10 | I81: 7.71 | J81: 7.71
F82: 7.81 | G82: =cubspline(3,F82,Data!$B$36:$B$56,Data!$A$36:$A$56) -> 0 | H82: 1e-10 | I82: 7.81 | J82: 7.81
F83: 7.91 | G83: =cubspline(3,F83,Data!$B$36:$B$56,Data!$A$36:$A$56) -> 0 | H83: 1e-10 | I83: 7.91 | J83: 7.91
F84: 8.01 | G84: =cubspline(3,F84,Data!$B$36:$B$56,Data!$A$36:$A$56) -> 0 | H84: 1e-10 | I84: 8.01 | J84: 8.01
F85: 8.11 | G85: =cubspline(3,F85,Data!$B$36:$B$56,Data!$A$36:$A$56) -> 0 | H85: 1e-10 | I85: 8.11 | J85: 8.11
F86: 8.21 | G86: =cubspline(3,F86,Data!$B$36:$B$56,Data!$A$36:$A$56) -> 0 | H86: 1e-10 | I86: 8.21 | J86: 8.21
F87: 8.31 | G87: =cubspline(3,F87,Data!$B$36:$B$56,Data!$A$36:$A$56) -> 0 | H87: 1e-10 | I87: 8.31 | J87: 8.31
F88: 8.41 | G88: =cubspline(3,F88,Data!$B$36:$B$56,Data!$A$36:$A$56) -> 0 | H88: 1e-10 | I88: 8.41 | J88: 8.41
F89: 8.51 | G89: =cubspline(3,F89,Data!$B$36:$B$56,Data!$A$36:$A$56) -> 0 | H89: 1e-10 | I89: 8.51 | J89: 8.51
F90: 8.61 | G90: =cubspline(3,F90,Data!$B$36:$B$56,Data!$A$36:$A$56) -> 0 | H90: 1e-10 | I90: 8.61 | J90: 8.61
F91: 8.71 | G91: =cubspline(3,F91,Data!$B$36:$B$56,Data!$A$36:$A$56) -> 0 | H91: 1e-10 | I91: 8.71 | J91: 8.71
F92: 8.81 | G92: =cubspline(3,F92,Data!$B$36:$B$56,Data!$A$36:$A$56) -> 0 | H92: 1e-10 | I92: 8.81 | J92: 8.81
F93: 8.91 | G93: =cubspline(3,F93,Data!$B$36:$B$56,Data!$A$36:$A$56) -> 0 | H93: 1e-10 | I93: 8.91 | J93: 8.91
F94: 9.01 | G94: =cubspline(3,F94,Data!$B$36:$B$56,Data!$A$36:$A$56) -> 0 | H94: 1e-10 | I94: 9.01 | J94: 9.01
F95: 9.11 | G95: =cubspline(3,F95,Data!$B$36:$B$56,Data!$A$36:$A$56) -> 0 | H95: 1e-10 | I95: 9.11 | J95: 9.11
F96: 9.21 | G96: =cubspline(3,F96,Data!$B$36:$B$56,Data!$A$36:$A$56) -> 0 | H96: 1e-10 | I96: 9.21 | J96: 9.21
F97: 9.31 | G97: =cubspline(3,F97,Data!$B$36:$B$56,Data!$A$36:$A$56) -> 0 | H97: 1e-10 | I97: 9.31 | J97: 9.31
F98: 9.41 | G98: =cubspline(3,F98,Data!$B$36:$B$56,Data!$A$36:$A$56) -> 0 | H98: 1e-10 | I98: 9.41 | J98: 9.41
F99: 9.51 | G99: =cubspline(3,F99,Data!$B$36:$B$56,Data!$A$36:$A$56) -> 0 | H99: 1e-10 | I99: 9.51 | J99: 9.51
F100: 9.61 | G100: =cubspline(3,F100,Data!$B$36:$B$56,Data!$A$36:$A$56) -> 0 | H100: 1e-10 | I100: 9.61 | J100: 9.61
F101: 9.71 | G101: =cubspline(3,F101,Data!$B$36:$B$56,Data!$A$36:$A$56) -> 0 | H101: 1e-10 | I101: 9.71 | J101: 9.71
F102: 9.81 | G102: =cubspline(3,F102,Data!$B$36:$B$56,Data!$A$36:$A$56) -> 0 | H102: 1e-10 | I102: 9.81 | J102: 9.81
F103: 9.91 | G103: =cubspline(3,F103,Data!$B$36:$B$56,Data!$A$36:$A$56) -> 0 | H103: 1e-10 | I103: 9.91 | J103: 9.91
F104: 10.01 | G104: =cubspline(3,F104,Data!$B$36:$B$56,Data!$A$36:$A$56) -> 0 | H104: 1e-10 | I104: 10.01 | J104: 10.01
F105: 10.11 | G105: =cubspline(3,F105,Data!$B$36:$B$56,Data!$A$36:$A$56) -> 0 | H105: 1e-10 | I105: 10.11 | J105: 10.11
F106: 10.21 | G106: =cubspline(3,F106,Data!$B$36:$B$56,Data!$A$36:$A$56) -> 0 | H106: 1e-10 | I106: 10.21 | J106: 10.21
F107: 10.31 | G107: =cubspline(3,F107,Data!$B$36:$B$56,Data!$A$36:$A$56) -> 0 | H107: 1e-10 | I107: 10.31 | J107: 10.31
F108: 10.41 | G108: =cubspline(3,F108,Data!$B$36:$B$56,Data!$A$36:$A$56) -> 0 | H108: 1e-10 | I108: 10.41 | J108: 10.41
F109: 10.51 | G109: =cubspline(3,F109,Data!$B$36:$B$56,Data!$A$36:$A$56) -> 0 | H109: 1e-10 | I109: 10.51 | J109: 10.51
F110: 10.61 | G110: =cubspline(3,F110,Data!$B$36:$B$56,Data!$A$36:$A$56) -> 0 | H110: 1e-10 | I110: 10.61 | J110: 10.61
F111: 10.71 | G111: =cubspline(3,F111,Data!$B$36:$B$56,Data!$A$36:$A$56) -> 0 | H111: 1e-10 | I111: 10.71 | J111: 10.71
F112: 10.81 | G112: =cubspline(3,F112,Data!$B$36:$B$56,Data!$A$36:$A$56) -> 0 | H112: 1e-10 | I112: 10.81 | J112: 10.81
F113: 10.91 | G113: =cubspline(3,F113,Data!$B$36:$B$56,Data!$A$36:$A$56) -> 0 | H113: 1e-10 | I113: 10.91 | J113: 10.91
F114: 11.01 | G114: =cubspline(3,F114,Data!$B$36:$B$56,Data!$A$36:$A$56) -> 0 | H114: 1e-10 | I114: 11.01 | J114: 11.01
F115: 11.11 | G115: =cubspline(3,F115,Data!$B$36:$B$56,Data!$A$36:$A$56) -> 0 | H115: 1e-10 | I115: 11.11 | J115: 11.11
F116: 11.21 | G116: =cubspline(3,F116,Data!$B$36:$B$56,Data!$A$36:$A$56) -> 0 | H116: 1e-10 | I116: 11.21 | J116: 11.21
F117: 11.31 | G117: =cubspline(3,F117,Data!$B$36:$B$56,Data!$A$36:$A$56) -> 0 | H117: 1e-10 | I117: 11.31 | J117: 11.31
F118: 11.41 | G118: =cubspline(3,F118,Data!$B$36:$B$56,Data!$A$36:$A$56) -> 0 | H118: 1e-10 | I118: 11.41 | J118: 11.41
F119: 11.51 | G119: =cubspline(3,F119,Data!$B$36:$B$56,Data!$A$36:$A$56) -> 0 | H119: 1e-10 | I119: 11.51 | J119: 11.51
F120: 11.61 | G120: =cubspline(3,F120,Data!$B$36:$B$56,Data!$A$36:$A$56) -> 0 | H120: 1e-10 | I120: 11.61 | J120: 11.61
F121: 11.71 | G121: =cubspline(3,F121,Data!$B$36:$B$56,Data!$A$36:$A$56) -> 0 | H121: 1e-10 | I121: 11.71 | J121: 11.71
F122: 11.81 | G122: =cubspline(3,F122,Data!$B$36:$B$56,Data!$A$36:$A$56) -> 0 | H122: 1e-10 | I122: 11.81 | J122: 11.81
F123: 11.91 | G123: =cubspline(3,F123,Data!$B$36:$B$56,Data!$A$36:$A$56) -> 0 | H123: 1e-10 | I123: 11.91 | J123: 11.91
F124: 12.01 | G124: =cubspline(3,F124,Data!$B$36:$B$56,Data!$A$36:$A$56) -> 0 | H124: 1e-10 | I124: 12.01 | J124: 12.01
F125: 12.11 | G125: =cubspline(3,F125,Data!$B$36:$B$56,Data!$A$36:$A$56) -> 0 | H125: 1e-10 | I125: 12.11 | J125: 12.11
F126: 12.21 | G126: =cubspline(3,F126,Data!$B$36:$B$56,Data!$A$36:$A$56) -> 0 | H126: 1e-10 | I126: 12.21 | J126: 12.21
F127: 12.31 | G127: =cubspline(3,F127,Data!$B$36:$B$56,Data!$A$36:$A$56) -> 0 | H127: 1e-10 | I127: 12.31 | J127: 12.31
F128: 12.41 | G128: =cubspline(3,F128,Data!$B$36:$B$56,Data!$A$36:$A$56) -> 0 | H128: 1e-10 | I128: 12.41 | J128: 12.41
F129: 12.51 | G129: =cubspline(3,F129,Data!$B$36:$B$56,Data!$A$36:$A$56) -> 0 | H129: 1e-10 | I129: 12.51 | J129: 12.51
F130: 12.61 | G130: =cubspline(3,F130,Data!$B$36:$B$56,Data!$A$36:$A$56) -> 0 | H130: 1e-10 | I130: 12.61 | J130: 12.61
F131: 12.71 | G131: =cubspline(3,F131,Data!$B$36:$B$56,Data!$A$36:$A$56) -> 0 | H131: 1e-10 | I131: 12.71 | J131: 12.71
F132: 12.81 | G132: =cubspline(3,F132,Data!$B$36:$B$56,Data!$A$36:$A$56) -> 0 | H132: 1e-10 | I132: 12.81 | J132: 12.81
F133: 12.91 | G133: =cubspline(3,F133,Data!$B$36:$B$56,Data!$A$36:$A$56) -> 0 | H133: 1e-10 | I133: =IF(F133>$D$47,F133,NA()) -> 12.91 | J133: =IF(F133>=$D$47,F133,($D$47-(0.3*($D$47-F133)))) -> 12.91
F134: =F133+0.1 -> 13.01 | G134: =cubspline(3,F134,Data!$B$36:$B$56,Data!$A$36:$A$56) -> 0 | H134: =IF(G134<=0,0.0000000001,G134) -> 1e-10 | I134: 13.01 | J134: 13.01
F135: 13.11 | G135: =cubspline(3,F135,Data!$B$36:$B$56,Data!$A$36:$A$56) -> 0 | H135: 1e-10 | I135: 13.11 | J135: 13.11
F136: 13.21 | G136: =cubspline(3,F136,Data!$B$36:$B$56,Data!$A$36:$A$56) -> 0 | H136: 1e-10 | I136: 13.21 | J136: 13.21
F137: 13.31 | G137: =cubspline(3,F137,Data!$B$36:$B$56,Data!$A$36:$A$56) -> 0 | H137: 1e-10 | I137: 13.31 | J137: 13.31
F138: 13.41 | G138: =cubspline(3,F138,Data!$B$36:$B$56,Data!$A$36:$A$56) -> 0 | H138: 1e-10 | I138: 13.41 | J138: 13.41
F139: 13.51 | G139: =cubspline(3,F139,Data!$B$36:$B$56,Data!$A$36:$A$56) -> 0 | H139: 1e-10 | I139: 13.51 | J139: 13.51
F140: 13.61 | G140: =cubspline(3,F140,Data!$B$36:$B$56,Data!$A$36:$A$56) -> 0 | H140: 1e-10 | I140: 13.61 | J140: 13.61
F141: 13.71 | G141: =cubspline(3,F141,Data!$B$36:$B$56,Data!$A$36:$A$56) -> 0 | H141: 1e-10 | I141: 13.71 | J141: 13.71
F142: 13.81 | G142: =cubspline(3,F142,Data!$B$36:$B$56,Data!$A$36:$A$56) -> 0 | H142: 1e-10 | I142: 13.81 | J142: 13.81
F143: 13.91 | G143: =cubspline(3,F143,Data!$B$36:$B$56,Data!$A$36:$A$56) -> 0 | H143: 1e-10 | I143: 13.91 | J143: 13.91
F144: 14.01 | G144: =cubspline(3,F144,Data!$B$36:$B$56,Data!$A$36:$A$56) -> 0 | H144: 1e-10 | I144: 14.01 | J144: 14.01
F145: 14.11 | G145: =cubspline(3,F145,Data!$B$36:$B$56,Data!$A$36:$A$56) -> 0 | H145: 1e-10 | I145: 14.11 | J145: 14.11
F146: 14.21 | G146: =cubspline(3,F146,Data!$B$36:$B$56,Data!$A$36:$A$56) -> 0 | H146: 1e-10 | I146: 14.21 | J146: 14.21
F147: 14.31 | G147: =cubspline(3,F147,Data!$B$36:$B$56,Data!$A$36:$A$56) -> 0 | H147: 1e-10 | I147: 14.31 | J147: 14.31
F148: 14.41 | G148: =cubspline(3,F148,Data!$B$36:$B$56,Data!$A$36:$A$56) -> 0 | H148: 1e-10 | I148: 14.41 | J148: 14.41
F149: 14.51 | G149: =cubspline(3,F149,Data!$B$36:$B$56,Data!$A$36:$A$56) -> 0 | H149: 1e-10 | I149: 14.51 | J149: 14.51
F150: 14.61 | G150: =cubspline(3,F150,Data!$B$36:$B$56,Data!$A$36:$A$56) -> 0 | H150: 1e-10 | I150: 14.61 | J150: 14.61
F151: 14.71 | G151: =cubspline(3,F151,Data!$B$36:$B$56,Data!$A$36:$A$56) -> 0 | H151: 1e-10 | I151: 14.71 | J151: 14.71
F152: 14.81 | G152: =cubspline(3,F152,Data!$B$36:$B$56,Data!$A$36:$A$56) -> 0 | H152: 1e-10 | I152: 14.81 | J152: 14.81
F153: 14.91 | G153: =cubspline(3,F153,Data!$B$36:$B$56,Data!$A$36:$A$56) -> 0 | H153: 1e-10 | I153: 14.91 | J153: 14.91
F154: 15.01 | G154: =cubspline(3,F154,Data!$B$36:$B$56,Data!$A$36:$A$56) -> 0 | H154: 1e-10 | I154: 15.01 | J154: 15.01
F155: 15.11 | G155: =cubspline(3,F155,Data!$B$36:$B$56,Data!$A$36:$A$56) -> 0 | H155: 1e-10 | I155: 15.11 | J155: 15.11
F156: 15.21 | G156: =cubspline(3,F156,Data!$B$36:$B$56,Data!$A$36:$A$56) -> 0 | H156: 1e-10 | I156: 15.21 | J156: 15.21
F157: 15.31 | G157: =cubspline(3,F157,Data!$B$36:$B$56,Data!$A$36:$A$56) -> 0 | H157: 1e-10 | I157: 15.31 | J157: 15.31
F158: 15.41 | G158: =cubspline(3,F158,Data!$B$36:$B$56,Data!$A$36:$A$56) -> 0 | H158: 1e-10 | I158: 15.41 | J158: 15.41
F159: 15.51 | G159: =cubspline(3,F159,Data!$B$36:$B$56,Data!$A$36:$A$56) -> 0 | H159: 1e-10 | I159: 15.51 | J159: 15.51
F160: 15.61 | G160: =cubspline(3,F160,Data!$B$36:$B$56,Data!$A$36:$A$56) -> 0 | H160: 1e-10 | I160: 15.61 | J160: 15.61
F161: 15.71 | G161: =cubspline(3,F161,Data!$B$36:$B$56,Data!$A$36:$A$56) -> 0 | H161: 1e-10 | I161: 15.71 | J161: 15.71
F162: 15.81 | G162: =cubspline(3,F162,Data!$B$36:$B$56,Data!$A$36:$A$56) -> 0 | H162: 1e-10 | I162: 15.81 | J162: 15.81
F163: 15.91 | G163: =cubspline(3,F163,Data!$B$36:$B$56,Data!$A$36:$A$56) -> 0 | H163: 1e-10 | I163: 15.91 | J163: 15.91
F164: 16.01 | G164: =cubspline(3,F164,Data!$B$36:$B$56,Data!$A$36:$A$56) -> 0 | H164: 1e-10 | I164: 16.01 | J164: 16.01
F165: 16.11 | G165: =cubspline(3,F165,Data!$B$36:$B$56,Data!$A$36:$A$56) -> 0 | H165: 1e-10 | I165: 16.11 | J165: 16.11
F166: 16.21 | G166: =cubspline(3,F166,Data!$B$36:$B$56,Data!$A$36:$A$56) -> 0 | H166: 1e-10 | I166: 16.21 | J166: 16.21
F167: 16.31 | G167: =cubspline(3,F167,Data!$B$36:$B$56,Data!$A$36:$A$56) -> 0 | H167: 1e-10 | I167: 16.31 | J167: 16.31
F168: 16.41 | G168: =cubspline(3,F168,Data!$B$36:$B$56,Data!$A$36:$A$56) -> 0 | H168: 1e-10 | I168: 16.41 | J168: 16.41
F169: 16.51 | G169: =cubspline(3,F169,Data!$B$36:$B$56,Data!$A$36:$A$56) -> 0 | H169: 1e-10 | I169: 16.51 | J169: 16.51
F170: 16.61 | G170: =cubspline(3,F170,Data!$B$36:$B$56,Data!$A$36:$A$56) -> 0 | H170: 1e-10 | I170: 16.61 | J170: 16.61
F171: 16.71 | G171: =cubspline(3,F171,Data!$B$36:$B$56,Data!$A$36:$A$56) -> 0 | H171: 1e-10 | I171: 16.71 | J171: 16.71
F172: 16.81 | G172: =cubspline(3,F172,Data!$B$36:$B$56,Data!$A$36:$A$56) -> 0 | H172: 1e-10 | I172: 16.81 | J172: 16.81
F173: 16.91 | G173: =cubspline(3,F173,Data!$B$36:$B$56,Data!$A$36:$A$56) -> 0 | H173: 1e-10 | I173: 16.91 | J173: 16.91
F174: 17.01 | G174: =cubspline(3,F174,Data!$B$36:$B$56,Data!$A$36:$A$56) -> 0 | H174: 1e-10 | I174: 17.01 | J174: 17.01
F175: 17.11 | G175: =cubspline(3,F175,Data!$B$36:$B$56,Data!$A$36:$A$56) -> 0 | H175: 1e-10 | I175: 17.11 | J175: 17.11
F176: 17.21 | G176: =cubspline(3,F176,Data!$B$36:$B$56,Data!$A$36:$A$56) -> 0 | H176: 1e-10 | I176: 17.21 | J176: 17.21
F177: 17.31 | G177: =cubspline(3,F177,Data!$B$36:$B$56,Data!$A$36:$A$56) -> 0 | H177: 1e-10 | I177: 17.31 | J177: 17.31
F178: 17.41 | G178: =cubspline(3,F178,Data!$B$36:$B$56,Data!$A$36:$A$56) -> 0 | H178: 1e-10 | I178: 17.41 | J178: 17.41
F179: 17.51 | G179: =cubspline(3,F179,Data!$B$36:$B$56,Data!$A$36:$A$56) -> 0 | H179: 1e-10 | I179: 17.51 | J179: 17.51
F180: 17.61 | G180: =cubspline(3,F180,Data!$B$36:$B$56,Data!$A$36:$A$56) -> 0 | H180: 1e-10 | I180: 17.61 | J180: 17.61
F181: 17.71 | G181: =cubspline(3,F181,Data!$B$36:$B$56,Data!$A$36:$A$56) -> 0 | H181: 1e-10 | I181: 17.71 | J181: 17.71
F182: 17.81 | G182: =cubspline(3,F182,Data!$B$36:$B$56,Data!$A$36:$A$56) -> 0 | H182: 1e-10 | I182: 17.81 | J182: 17.81
F183: 17.91 | G183: =cubspline(3,F183,Data!$B$36:$B$56,Data!$A$36:$A$56) -> 0 | H183: 1e-10 | I183: 17.91 | J183: 17.91
F184: 18.01 | G184: =cubspline(3,F184,Data!$B$36:$B$56,Data!$A$36:$A$56) -> 0 | H184: 1e-10 | I184: 18.01 | J184: 18.01
F185: 18.11 | G185: =cubspline(3,F185,Data!$B$36:$B$56,Data!$A$36:$A$56) -> 0 | H185: 1e-10 | I185: 18.11 | J185: 18.11
F186: 18.21 | G186: =cubspline(3,F186,Data!$B$36:$B$56,Data!$A$36:$A$56) -> 0 | H186: 1e-10 | I186: 18.21 | J186: 18.21
F187: 18.31 | G187: =cubspline(3,F187,Data!$B$36:$B$56,Data!$A$36:$A$56) -> 0 | H187: 1e-10 | I187: 18.31 | J187: 18.31
F188: 18.41 | G188: =cubspline(3,F188,Data!$B$36:$B$56,Data!$A$36:$A$56) -> 0 | H188: 1e-10 | I188: 18.41 | J188: 18.41
F189: 18.51 | G189: =cubspline(3,F189,Data!$B$36:$B$56,Data!$A$36:$A$56) -> 0 | H189: 1e-10 | I189: 18.51 | J189: 18.51
F190: 18.61 | G190: =cubspline(3,F190,Data!$B$36:$B$56,Data!$A$36:$A$56) -> 0 | H190: 1e-10 | I190: 18.61 | J190: 18.61
F191: 18.71 | G191: =cubspline(3,F191,Data!$B$36:$B$56,Data!$A$36:$A$56) -> 0 | H191: 1e-10 | I191: 18.71 | J191: 18.71
F192: 18.81 | G192: =cubspline(3,F192,Data!$B$36:$B$56,Data!$A$36:$A$56) -> 0 | H192: 1e-10 | I192: 18.81 | J192: 18.81
F193: 18.91 | G193: =cubspline(3,F193,Data!$B$36:$B$56,Data!$A$36:$A$56) -> 0 | H193: 1e-10 | I193: 18.91 | J193: 18.91
F194: 19.01 | G194: =cubspline(3,F194,Data!$B$36:$B$56,Data!$A$36:$A$56) -> 0 | H194: 1e-10 | I194: 19.01 | J194: 19.01
F195: 19.11 | G195: =cubspline(3,F195,Data!$B$36:$B$56,Data!$A$36:$A$56) -> 0 | H195: 1e-10 | I195: 19.11 | J195: 19.11
F196: 19.21 | G196: =cubspline(3,F196,Data!$B$36:$B$56,Data!$A$36:$A$56) -> 0 | H196: 1e-10 | I196: 19.21 | J196: 19.21
F197: 19.31 | G197: =cubspline(3,F197,Data!$B$36:$B$56,Data!$A$36:$A$56) -> 0 | H197: 1e-10 | I197: =IF(F197>$D$47,F197,NA()) -> 19.31 | J197: =IF(F197>=$D$47,F197,($D$47-(0.3*($D$47-F197)))) -> 19.31
F198: =F197+0.1 -> 19.41 | G198: =cubspline(3,F198,Data!$B$36:$B$56,Data!$A$36:$A$56) -> 0 | H198: =IF(G198<=0,0.0000000001,G198) -> 1e-10 | I198: 19.41 | J198: 19.41
F199: 19.51 | G199: =cubspline(3,F199,Data!$B$36:$B$56,Data!$A$36:$A$56) -> 0 | H199: 1e-10 | I199: 19.51 | J199: 19.51
F200: 19.61 | G200: =cubspline(3,F200,Data!$B$36:$B$56,Data!$A$36:$A$56) -> 0 | H200: 1e-10 | I200: 19.61 | J200: 19.61
F201: 19.71 | G201: =cubspline(3,F201,Data!$B$36:$B$56,Data!$A$36:$A$56) -> 0 | H201: 1e-10 | I201: 19.71 | J201: 19.71
... 803 more rows
